Cogmind - Beta 14 @@@ ROGUE MODE // 2024.08.25 @ 19:08:14 Player: Lunace Result: Destroyed by W1-XPJ(R) with Subdweller Machine Gun Performance ------------- Evolutions (0) 0 Regions Visited (2) 400 Robots Destroyed (19) 95 Value Destroyed (545) 545 Prototype IDs (0) 0 Alien Tech Used (0) 0 Bonus (0) 0 TOTAL SCORE: 1040 Bonus ------- None Cogmind --------- Core Integrity 0/250 Matter 300/300 Energy 100/100 System Corruption 0% Temperature Cool (36) Movement Rolling (120) Ox1 Location -10/Subcaves Parts ------- > --- POWER (1) -------- (None) > --- PROPULSION (2) --- Spiked Treads Subdweller Monowheel > --- UTILITY (2) ------ Large Storage Unit Subdweller Optics > --- WEAPON (2) ------- Subdweller Laser Subdweller Laser > --- INVENTORY (15) --- Ion Engine Wheel Structural Scanner Scrap Shield Scrap Shield Makeshift Hacking Suite Makeshift Hacking Suite Makeshift System Restoration Module Battle Rifle Subdweller Machine Gun Grenade Launcher Mining Laser Makeshift Sword Peak State ------------ > --- POWER ------------ Subdweller Power Source > --- PROPULSION ------- Light Treads Subdweller Monowheel > --- UTILITY ---------- Large Storage Unit > --- WEAPON ----------- Heavy Riot Gun Heavy Riot Gun > --- INVENTORY -------- Ion Engine Ion Engine Small Storage Unit Structural Scanner Scrap Shield Medium Laser Subdweller Laser Light Assault Rifle Battle Cannon Grenade Launcher Mining Laser [Rating: 15] Favorites ----------- Power Ion Engine Engine Ion Engine Propulsion Subdweller Monowheel Treads Light Treads Wheel Subdweller Monowheel Utility Large Storage Unit Device Subdweller Optics Storage Large Storage Unit Protection Light Armor Plating Weapon Subdweller Laser Energy Gun Subdweller Laser Energy Cannon Subdweller Beam Cannon Ballistic Gun Subdweller Machine Gun Ballistic Cannon Battle Cannon Launcher Grenade Launcher Special Weapon Mining Laser Build | -11 -10 -10 ------- Run | Yrd Mat Sub Slots Evolved . | . . . Power . | . . . Propulsion . | . . . Utility . | . . . Weapon . | . . . Parts Attached 35 | 6 3 26 Power 4 | 1 . 3 Engine 4 | 1 . 3 Core . | . . . Reactor . | . . . Propulsion 6 | 2 . 4 Treads 3 | 2 . 1 Leg . | . . . Wheel 3 | . . 3 Hover . | . . . Flight . | . . . Utility 4 | 1 2 1 Device 1 | . . 1 Storage 2 | 1 1 . Processor . | . . . Hackware . | . . . Protection 1 | . 1 . Artifact . | . . . Weapon 21 | 2 1 18 Energy Gun 14 | 2 . 12 Energy Cannon 1 | . . 1 Ballistic Gun 1 | . . 1 Ballistic Cannon 2 | . . 2 Launcher 1 | . . 1 Special Weapon 2 | . 1 1 Impact Weapon . | . . . Slashing Weapon . | . . . Piercing Weapon . | . . . Special Melee Weapon . | . . . Unidentified Prototypes . | . . . Parts Lost 11 | . . 11 Power 2 | . . 2 Propulsion 4 | . . 4 Utility 1 | . . 1 Weapon 4 | . . 4 Highest Loss Streak 4 | . . 4 To Critical Strikes . | . . . Average Slot Usage (%) 91 | . 98 90 Engine 14 | . 14 14 Treads 11 | . 28 10 Wheel 10 | . . 11 Device 9 | . . 10 Storage 14 | . 14 14 Protection 2 | . 12 1 Energy Gun 21 | . 22 21 Ballistic Cannon 4 | . . 5 Peak Build Rating 15 | 6 7 15 Average Rating 11 | 5 6 12 On Entrance 4 | . 6 7 Naked Turns . | . . . Heaviest Build 37 | 13 31 37 Greatest Support 40 | 40 40 40 Greatest Overweight (x) 10 | . . 10 Average Overweight (x) 1 | . . 1 Largest Inventory Capacity 15 | 8 15 15 Average Capacity 14 | 7 12 15 Most Carried 15 | 3 6 15 Average Carried 11 | 2 5 13 Final Capacity 15 | 8 15 15 Final Carried 15 | 3 6 15 Class Distribution -------------------- 91% | Mutant 8% | Scavenger-Mutant Dominant Class ---------------- Mutant | -10/Materials Mutant | -10/Subcaves Resources | -11 -10 -10 ----------- Run | Yrd Mat Sub Matter Collected 761 | 259 . 502 Remotely . | . . . Salvage Created 610 | 93 . 517 Parts 28 | 4 . 24 Haulers Intercepted . | . . . Recyclers Shooed . | . . . Parts Field Recycled . | . . . Retrieved Matter . | . . . Parts Self-Destructed 12 | . . 12 Prevented . | . . . Kills | -11 -10 -10 ------- Run | Yrd Mat Sub Combat Hostiles Destroyed 15 | . . 15 Guns 9 | . . 9 Cannons 1 | . . 1 AOE 4 | . . 4 Classes Destroyed 4 | 1 . 3 Tunneler 4 | 4 . . Swarmer 3 | . . 3 Grunt 1 | . . 1 Subdweller 11 | . . 11 Best Kill Streak 3 | 2 . 3 Combat Bots Only 3 | . . 3 Max Kills in Single Turn 3 | 1 . 3 Gunslinging . | . . . Exploded 3 | . . 3 Melee . | . . . Uniques/NPCs Destroyed . | . . . Combat | -11 -10 -10 -------- Run | Yrd Mat Sub Hostile Shots Fired 87 | . . 87 Missed 21 | . . 21 Damage Taken 1524 | . . 1524 Core 255 | . . 255 Absorbed by Shields . | . . . Core Remaining (%) 100 | 100 . . Volleys Fired 123 | 11 13 99 Largest 2 | 2 1 2 Hottest 130 | 90 100 130 Shots Fired 197 | 22 13 162 Gun 131 | 22 . 109 Cannon 46 | . . 46 Launcher 3 | . . 3 Special 17 | . 13 4 Kinetic 46 | . . 46 Thermal 139 | 22 13 104 Explosive 3 | . . 3 Electromagnetic 9 | . . 9 Robot Hit Streak 17 | 5 . 17 Robot Miss Streak 2 | 1 . 2 Penetration Max . | . . . Secondary Targets . | . . . Shots Hit Robots 101 | 14 . 87 Core Hits 28 | 4 . 24 Critical Kills . | . . . Critical Parts Destroyed . | . . . Critical Strikes 3 | . . 3 Burn 1 | . . 1 Destroy 1 | . . 1 Blast 1 | . . 1 Melee Attacks . | . . . Impact . | . . . Slashing . | . . . Piercing . | . . . Sneak Attacks . | . . . Combat Hostiles . | . . . Follow-up Attacks . | . . . Damage Inflicted 1740 | 177 . 1563 Guns 1304 | 177 . 1127 Cannons 255 | . . 255 Explosions 181 | . . 181 Melee . | . . . Ramming . | . . . Kinetic 244 | . . 244 Thermal 1226 | 177 . 1049 Explosive 115 | . . 115 Electromagnetic 155 | . . 155 Impact . | . . . Slashing . | . . . Piercing . | . . . Highest Corruption . | . . . Average Corruption . | . . . Corruption Purged . | . . . Corruption Blocked . | . . . Overload Shots . | . . . Overflow Damage 5 | . . 5 Projectiles . | . . . Explosions 5 | . . 5 Melee . | . . . Knockbacks 4 | . . 4 Impact . | . . . Kinetic 4 | . . 4 Secondary . | . . . Self-Inflicted Damage . | . . . Shots . | . . . Rammed . | . . . Targets Rammed . | . . . Kicked . | . . . Crushed . | . . . Highest Temperature 274 | 180 273 274 Average Temperature 87 | 67 118 62 Received Heat Transfer 588 | . . 588 Siege Activations . | . . . Robots Corrupted 1 | . . 1 Combat Hostiles 1 | . . 1 Parts Fried 1 | . . 1 Impact Corruptions . | . . . Robots Melted . | . . . Combat Hostiles . | . . . Parts Melted 8 | 1 . 7 Heat Transferred 2321 | 447 . 1874 Parts Sabotaged . | . . . Parts Stolen . | . . . Parts Stripped . | . . . Power Chain Reactions 1 | . . 1 Alert | -11 -10 -10 ------- Run | Yrd Mat Sub Peak Influence 20 | 20 16 . Initial 13 | . 13 . Average 12 | 10 15 . Maximum Alert Level . | . . . Low Security (%) 100 | 100 100 . Level 1 . | . . . Level 2 . | . . . Level 3 . | . . . Level 4 . | . . . Level 5 . | . . . High Security . | . . . Max Security . | . . . Squads Dispatched . | . . . Investigation . | . . . Extermination . | . . . Reinforcement . | . . . Assault . | . . . Garrison . | . . . Intercept . | . . . Searches Triggered . | . . . Construction Impeded . | . . . Haulers Reinforced . | . . . Active Scanning Responses . | . . . Cargo Convoy Interrupts . | . . . Stealth | -11 -10 -10 --------- Run | Yrd Mat Sub Distress Signals . | . . . Communications Jammed . | . . . Distress Signals . | . . . Times Spotted 16 | . . 16 Peak Tracking Total 3 | . . 3 Tactical Retreats . | . . . Traps | -11 -10 -10 ------- Run | Yrd Mat Sub Traps Triggered 1 | . . 1 Indirectly . | . . . Trap Hack Attempts . | . . . Triggered . | . . . Disarmed . | . . . Reprogrammed . | . . . Reused . | . . . Traps Extracted . | . . . Installed . | . . . Triggered . | . . . Machines | -11 -10 -10 ---------- Run | Yrd Mat Sub Machines Disabled . | . . . Max in Single Turn . | . . . Machines Repaired . | . . . Machines Dismantled . | . . . Machines Sabotaged . | . . . Overloaded Fab Kills . | . . . Hacking | -11 -10 -10 --------- Run | Yrd Mat Sub Machines Accessed 2 | . 1 1 Terminals . | . . . Fabricators . | . . . Repair Stations . | . . . Recycling Units 1 | . 1 . Scanalyzers . | . . . Garrison Access . | . . . Total Hacks 7 | . 3 4 Successful 6 | . 2 4 Failed 1 | . 1 . Catastrophic . | . . . Database Lockouts . | . . . Manual 2 | . 2 . Terminals . | . . . Fabricators . | . . . Repair Stations . | . . . Recycling Units 3 | . 3 . Scanalyzers . | . . . Garrison Access . | . . . Terminal Hacks 4 | . . 4 Record 4 | . . 4 Fabricator Hacks . | . . . Repair Station Hacks . | . . . Recycling Unit Hacks 1 | . 1 . Retrieve Components 1 | . 1 . Scanalyzer . | . . . Garrison Access Hacks . | . . . Unauthorized Hacks 1 | . 1 . Terminals . | . . . Fabricators . | . . . Repair Stations . | . . . Recycling Units 1 | . 1 . Recyclers 1 | . 1 . Scanalyzers . | . . . Garrison Access . | . . . Data Cores Recovered . | . . . Used . | . . . Hacking Detections 1 | . 1 . Full Trace Events . | . . . Feedback Events . | . . . Feedback Blocked . | . . . Robot Schematics Acquired . | . . . Robots Built . | . . . Authchips . | . . . Time . | . . . Total Robot Build Rating . | . . . Part Schematics Acquired . | . . . Parts Built . | . . . Authchips . | . . . Time . | . . . Total Part Build Rating . | . . . Parts Repaired . | . . . Time . | . . . Parts Recycled . | . . . Recycled Matter . | . . . Retrieved Matter . | . . . Retrieved Components 3 | . 3 . Parts Scanalyzed . | . . . Part Schematics Acquired . | . . . Parts Damaged . | . . . Bothacking | -11 -10 -10 ------------ Run | Yrd Mat Sub Used RIF Installer . | . . . Robots Hacked . | . . . Non-combat . | . . . Combat . | . . . Robot Hacks Applied . | . . . Relay Couplers Released . | . . . Fabnet Peak Effective % . | . . . Robots Rewired . | . . . Allies Hacked . | . . . Hacks Repelled . | . . . Allies | -11 -10 -10 -------- Run | Yrd Mat Sub Total Allies . | . . . Largest Group . | . . . Highest-Rated Group . | . . . Highest-Rated Ally . | . . . Total Orders . | . . . Ally Attacks . | . . . Total Damage . | . . . Kills . | . . . Allies Corrupted . | . . . Allies Melted . | . . . Intel | -11 -10 -10 ------- Run | Yrd Mat Sub Robot Analysis Total . | . . . Derelict Logs Recovered 1 | . . 1 Drone Launches . | . . . Drone Recoveries . | . . . Exploration | -11 -10 -10 ------------- Run | Yrd Mat Sub Turns Passed 2297 | 190 187 1920 Spaces Moved 1226 | 87 81 1058 Core 59 | 3 . 56 Treads 258 | 84 81 93 Legs . | . . . Wheels 909 | . . 909 Hover . | . . . Flight . | . . . Fastest Speed 50 | 50 160 120 Average Speed 149 | 156 160 148 Slowest Speed 550 | 160 160 550 Overloaded Moves . | . . . Propulsion Burnouts . | . . . Robots Hopped . | . . . Cave-ins Triggered . | . . . Exploration Rate (%) 30 | 5 13 73 Regions Visited 2 Branch Regions 1 Pre-discovered Areas 2 | . . 2 Known Exits Taken . | . . . Unknown Exits Taken 2 | 1 1 . Scrap Searched 18 | . . 18 Spaces Dug 7 | . 3 4 Terrain Destroyed 18 | . 5 13 Melee . | . . . Projectile 6 | . 5 1 AOE 12 | . . 12 Terrain Rammed . | . . . Walls Destroyed . | . . . Machines Disabled . | . . . Actions | -11 -10 -10 --------- Run | Yrd Mat Sub Total 1446 | 116 98 1232 Wait 30 | 10 . 20 Move 1224 | 86 80 1058 Hop . | . . . Pick Up 20 | 3 2 15 Fast Attach 19 | 6 1 12 Attach 6 | . . 6 Detach 4 | . . 4 Swap 10 | . 2 8 Drop 10 | . . 10 Fire 123 | 11 13 99 Melee . | . . . Ram . | . . . Kick . | . . . Crush . | . . . Escape Stasis . | . . . Rewire . | . . . Trap . | . . . Miscellaneous . | . . . Route ------- -11/Scrapyard -10/Materials -10/Subcaves History --------- Turn | Location | Event 13 | -11/Scrapyard | Discovered new exit (range 16) 191 | -11/Scrapyard | Entered Materials 325 | -10/Materials | Build established: Mutant 372 | -10/Materials | Discovered new exit (range 3) 378 | -10/Materials | Entered Subcaves 391 | -10/Subcaves | Learned location of Zion (-7) 397 | -10/Subcaves | A swath of the cavern ceiling suddenly collapsed 593 | -10/Subcaves | Lost 4 parts (1p1n1u1w) 601 | -10/Subcaves | Core integrity fell below 50% 643 | -10/Subcaves | Disturbed a concealed Subdweller 643 | -10/Subcaves | Disturbed a concealed Subdweller 897 | -10/Subcaves | Disturbed a concealed Subdweller 1483 | -10/Subcaves | Shifting Twisted Machinery released Sub. Laser 1487 | -10/Subcaves | Shifting Twisted Machinery released Flamer 1494 | -10/Subcaves | Shifting Twisted Machinery released Sub. Optics 1529 | -10/Subcaves | Shifting Twisted Machinery released Flamer 1927 | -10/Subcaves | A swath of the cavern ceiling suddenly collapsed 1971 | -10/Subcaves | Shifting Twisted Machinery released Sub. Optics 1977 | -10/Subcaves | Shifting Twisted Machinery released Mak. System Restoration Module 1991 | -10/Subcaves | Core integrity fell below 20% 2039 | -10/Subcaves | Visited Clippyterm 2042 | -10/Subcaves | Learned location of Deep Caves (-7) 2042 | -10/Subcaves | Learned Factory emergency access door positions 2289 | -10/Subcaves | Ambushed by Subdwellers from Twisted Machinery 2298 | -10/Subcaves | Destroyed by W1-XPJ(R) with Subdweller Machine Gun Last Messages --------------- attempt to resurrect an ancient AI. I give up. There must be something fundamentally wrong with the algorithm, because no matter how much data I collect to feed it, half the time it still manages to suggest unhelpful sample queries and responses. --DD-NU8 >>Record "Some Assembly Required" It looks like you want to find the nearest Z-Facility, would you like help? World map updated: -7/Deep Caves. >>Record "Hide-and-Seek" It looks like you're trying to avoid detection, would you like help? Data stored: Factory emergency access points. >>Record! "Permadeath" It looks like you're defining "roguelike," quit while you're ahead. Please. 02289_ W4-R88(R) emerges from the Twisted Machinery. 02296_ Ion Engine destroyed. Map ----- +----------------------------------------------------+ | ??????????????????# ### #??????# # | | ??????????????????# #?## ## #??????# % | | ??????????????????#### ##?####?######????# | | ???????????????????### ##???????## #????#" | | ??????????????????## ##??????# #????#### | | ??????????????????# #####?## ######??## | | ??????????????????## ### #???### | | ???????????????????## ####????? | | ????????????????????# # ##???? | | ????????????????????# % #???? | | ????????????????????### ##??? | | ??????????????????????# #### ## #??? | | ??????????????????????# ##??#### #??? | | ?????????????????????# #?### ##??? | | ?????????????????????# ## ##?# ##?? | | ?????????????????????# ### ###??### #?? | | ?????????????????????###??# ""##???######% #?? | | ??????????????????????????# ""##????# ### % # #?? | | ??????????????????????????## "##????# ### ####?? | | ??????????????????????????## ""##?### # ###??? | | ??????????????????????????# """"### % % #### | | ??????????????????????????# """"###"" % # | | ??????????????????????????# """"""## | | ??????????????????????????# "" #### | | ????????????????????????### #???# | | ????????????????????????#@ ##????# | | ?????????????????????# #?????? | | ??????????????? " #### #??????? | | ??????????? RR #??##### #???????? | | ??????????## " ??????## ####???????? | | ???????????## #### ??????###??????????? | | ????????????#### ####???## ##??????????????????? | | ???????????????##?????????####???????????????????? | | ?????????????????????????????????????????????????? | | ?????????????????????????????????????????????????? | | ?????????????????????????????????????????????????? | | ?????????????????????????????????????????????????? | | ?????????????????????????????????????????????????? | | ?????????????????????????????????????????????????? | | ?????????????????????????????????????????????????? | | ?????????????????????????????????????????????????? | | ?????????????????????????????????????????????????? | | ?????????????????????????????????????????????????? | | ?????????????????????????????????????????????????? | | ?????????????????????????????????????????????????? | | ?????????????????????????????????????????????????? | | ?????????????????????????????????????????????????? | | | | | | | +----------------------------------------------------+ Best States ------------- Heat Dissipation 25 Energy Generation 15 Energy Capacity 250 Matter Stores 300 Matter Capacity 300 Sight Range 21 Terrain Scan Density 10 Armor Coverage 150 Evasion (%) 40 Recoil Reduction 2 Item Schematics ----------------- None Robot Schematics ------------------ None Fabricated ------------ Nothing Alien Tech Used ----------------- None Achievements -------------- None Challenges ------------ None Game ------ Seed PropulsionComponentDiverter Manual? 0 Play Time 00:15:30 Cumulative 310.7 hours Start 2024.08.25 @ 18:53:40 End 2024.08.25 @ 19:08:14 Sessions 1 Manual Loads 0 Difficulty Rogue Special Mode None Game No. 312 Rogue 307 Adventurer 5 Explorer 0 Win Type - Total 5 Types 4/0/0/1/0/0/0/0/0 Lore% 69 Gallery% 80 Achievement% 66 Wizard Run 0 Options --------- Layout 1 ASCII 0 Keyboard 0 Movement Mouse Keybinds 0 Fullscreen 1 Font 24/Terminus Map View 50x35 Zoom Use 0% Tactical HUD 1 Map Filters NONE Filters NONE Steam 1 RUN: c0bd0c29-18fd-466f-a5d9-71847fbffab9